[Event "Titled Tuesday Blitz April 19 Early 2022"]
[White "Demin, Vladimir"]
[Black "Zhu, Jiner"]
[WhiteFideId "4167457"]
[BlackFideId "8608059"]
[WhiteElo "2401"]
[BlackElo "2281"]
[Result "0-1"]
[Round "01"]
[TimeControl "180+1"]
[Date "2022.04.19"]
[WhiteClock "0:00:04"]
[BlackClock "0:00:08"]

1. e4 {[%clk 0:02:59]}  c5 {[%clk 0:02:58]} 2. Nf3 {[%clk 0:02:59]}  d6 {[%clk 0:02:57]} 3. d4 {[%clk 0:02:59]}  cxd4 {[%clk 0:02:58]} 4. Qxd4 {[%clk 0:02:59]}  Nc6 {[%clk 0:02:58]} 5. Bb5 {[%clk 0:02:59]}  Bd7 {[%clk 0:02:57]} 6. Bxc6 {[%clk 0:02:58]}  Bxc6 {[%clk 0:02:58]} 7. Nc3 {[%clk 0:02:57]}  Nf6 {[%clk 0:02:57]} 8. Bg5 {[%clk 0:02:57]}  e6 {[%clk 0:02:51]} 9. O-O-O {[%clk 0:02:57]}  Be7 {[%clk 0:02:51]} 10. Qd3 {[%clk 0:02:57]}  Qa5 {[%clk 0:02:47]} 11. Kb1 {[%clk 0:02:56]}  O-O {[%clk 0:02:45]} 12. Bc1 {[%clk 0:02:55]}  Rfc8 {[%clk 0:02:37]} 13. Nd4 {[%clk 0:02:54]}  Bd7 {[%clk 0:02:37]} 14. g4 {[%clk 0:02:48]}  Rxc3 {[%clk 0:02:11]} 15. bxc3 {[%clk 0:02:43]}  d5 {[%clk 0:02:10]} 16. Nb3 {[%clk 0:02:29]}  Qc7 {[%clk 0:01:53]} 17. f3 {[%clk 0:02:10]}  dxe4 {[%clk 0:01:35]} 18. fxe4 {[%clk 0:02:06]}  Bc6 {[%clk 0:01:35]} 19. Rde1 {[%clk 0:01:47]}  Qe5 {[%clk 0:01:08]} 20. Qd4 {[%clk 0:01:24]}  Qxd4 {[%clk 0:00:59]} 21. Nxd4 {[%clk 0:01:23]}  Nxg4 {[%clk 0:00:54]} 22. Rhg1 {[%clk 0:01:10]}  Ne5 {[%clk 0:00:48]} 23. Kb2 {[%clk 0:00:49]}  Be8 {[%clk 0:00:42]} 24. Kb3 {[%clk 0:00:41]}  Rc8 {[%clk 0:00:41]} 25. Bg5 {[%clk 0:00:33]}  f6 {[%clk 0:00:27]} 26. Bf4 {[%clk 0:00:30]}  Ng6 {[%clk 0:00:18]} 27. Be3 {[%clk 0:00:24]}  Bf7 {[%clk 0:00:12]} 28. Kb2 {[%clk 0:00:22]}  Ne5 {[%clk 0:00:12]} 29. Nb3 {[%clk 0:00:13]}  Nc4+ {[%clk 0:00:12]} 30. Kb1 {[%clk 0:00:14]}  Nxe3 {[%clk 0:00:12]} 31. Rxe3 {[%clk 0:00:14]}  e5 {[%clk 0:00:12]} 32. Rd1 {[%clk 0:00:13]}  Be6 {[%clk 0:00:12]} 33. Kb2 {[%clk 0:00:12]}  Kf7 {[%clk 0:00:13]} 34. Red3 {[%clk 0:00:09]}  b6 {[%clk 0:00:13]} 35. a4 {[%clk 0:00:09]}  g5 {[%clk 0:00:13]} 36. a5 {[%clk 0:00:09]}  h5 {[%clk 0:00:13]} 37. axb6 {[%clk 0:00:09]}  axb6 {[%clk 0:00:14]} 38. Ra1 {[%clk 0:00:09]}  g4 {[%clk 0:00:12]} 39. Ra6 {[%clk 0:00:08]}  Bc4 {[%clk 0:00:10]} 40. Rxb6 {[%clk 0:00:07]}  Bxd3 {[%clk 0:00:10]} 41. cxd3 {[%clk 0:00:08]}  h4 {[%clk 0:00:11]} 42. Ra6 {[%clk 0:00:06]}  g3 {[%clk 0:00:07]} 43. hxg3 {[%clk 0:00:07]}  hxg3 {[%clk 0:00:08]} 44. Ra1 {[%clk 0:00:07]}  Rg8 {[%clk 0:00:08]} 45. Rg1 {[%clk 0:00:08]}  Ke6 {[%clk 0:00:07]} 46. Nd2 {[%clk 0:00:07]}  f5 {[%clk 0:00:07]} 47. exf5+ {[%clk 0:00:07]}  Kxf5 {[%clk 0:00:08]} 48. Rg2 {[%clk 0:00:07]}  Kg4 {[%clk 0:00:07]} 49. Ne4 {[%clk 0:00:07]}  Kf3 {[%clk 0:00:07]} 50. Rxg3+ {[%clk 0:00:02]}  Rxg3 {[%clk 0:00:06]} 51. Nxg3 {[%clk 0:00:03]}  Kxg3 {[%clk 0:00:07]} 52. d4 {[%clk 0:00:03]}  e4 {[%clk 0:00:07]} 53. c4 {[%clk 0:00:03]}  e3 {[%clk 0:00:07]} 54. Kc2 {[%clk 0:00:04]}  e2 {[%clk 0:00:08]} 0-1


[Site "https://www.chess.com"]

[Event "Titled Tuesday Blitz April 19 Early 2022"]
[White "Derjabin, Ilja"]
[Black "Baker, Chris W"]
[WhiteFideId "14104768"]
[BlackFideId "401676"]
[WhiteElo "2341"]
[BlackElo "2191"]
[Result "1-0"]
[Round "01"]
[TimeControl "180+1"]
[Date "2022.04.19"]
[WhiteClock "0:01:18"]
[BlackClock "0:00:18"]

1. d4 {[%clk 0:03:00]}  e6 {[%clk 0:02:58]} 2. c4 {[%clk 0:03:00]}  f5 {[%clk 0:02:58]} 3. Nc3 {[%clk 0:03:00]}  Nf6 {[%clk 0:02:59]} 4. Nf3 {[%clk 0:03:00]}  Be7 {[%clk 0:02:59]} 5. g3 {[%clk 0:03:00]}  O-O {[%clk 0:02:58]} 6. Bg2 {[%clk 0:03:00]}  d6 {[%clk 0:02:59]} 7. O-O {[%clk 0:02:59]}  Nc6 {[%clk 0:02:58]} 8. d5 {[%clk 0:02:43]}  Nb4 {[%clk 0:02:55]} 9. dxe6 {[%clk 0:02:41]}  c6 {[%clk 0:02:49]} 10. a3 {[%clk 0:02:36]}  Na6 {[%clk 0:02:48]} 11. Ng5 {[%clk 0:02:32]}  h6 {[%clk 0:02:47]} 12. Nf7 {[%clk 0:02:29]}  Qc7 {[%clk 0:02:47]} 13. Nxh6+ {[%clk 0:02:29]}  gxh6 {[%clk 0:02:45]} 14. Bxh6 {[%clk 0:02:30]}  Bxe6 {[%clk 0:02:45]} 15. e4 {[%clk 0:02:28]}  Rf7 {[%clk 0:02:38]} 16. Re1 {[%clk 0:02:24]}  Ng4 {[%clk 0:02:29]} 17. exf5 {[%clk 0:02:20]}  Bxf5 {[%clk 0:02:29]} 18. Bf4 {[%clk 0:02:20]}  Ne5 {[%clk 0:02:15]} 19. Ne4 {[%clk 0:02:11]}  Rd8 {[%clk 0:02:00]} 20. c5 {[%clk 0:01:46]}  dxc5 {[%clk 0:01:46]} 21. Qh5 {[%clk 0:01:43]}  Rd5 {[%clk 0:01:30]} 22. Ng5 {[%clk 0:01:34]}  Bxg5 {[%clk 0:00:33]} 23. Bxd5 {[%clk 0:01:28]}  cxd5 {[%clk 0:00:18]} 24. Qxg5+ {[%clk 0:01:18]} 1-0


[Site "https://www.chess.com"]

[Event "Titled Tuesday Blitz April 19 Early 2022"]
[White "Wagner, Dinara"]
[Black "Dreev, Aleksey"]
[WhiteFideId "24157570"]
[BlackFideId "4100107"]
[WhiteElo "2216"]
[BlackElo "2625"]
[Result "0-1"]
[Round "01"]
[TimeControl "180+1"]
[Date "2022.04.19"]
[WhiteClock "0:00:03"]
[BlackClock "0:01:47"]

1. d4 {[%clk 0:02:58]}  d5 {[%clk 0:02:59]} 2. c4 {[%clk 0:02:58]}  c6 {[%clk 0:03:00]} 3. Nf3 {[%clk 0:02:59]}  Nf6 {[%clk 0:03:00]} 4. g3 {[%clk 0:02:59]}  Bf5 {[%clk 0:02:59]} 5. Nc3 {[%clk 0:02:59]}  e6 {[%clk 0:03:00]} 6. Nh4 {[%clk 0:03:00]}  Be4 {[%clk 0:02:59]} 7. f3 {[%clk 0:03:00]}  Bg6 {[%clk 0:02:58]} 8. Qb3 {[%clk 0:02:58]}  Qb6 {[%clk 0:02:57]} 9. c5 {[%clk 0:02:58]}  Qxb3 {[%clk 0:02:55]} 10. axb3 {[%clk 0:02:59]}  Na6 {[%clk 0:02:55]} 11. Bf4 {[%clk 0:02:28]}  Bc2 {[%clk 0:02:48]} 12. e3 {[%clk 0:02:23]}  Nb4 {[%clk 0:02:47]} 13. Kd2 {[%clk 0:01:56]}  Bxb3 {[%clk 0:02:46]} 14. Ra3 {[%clk 0:01:51]}  Bc4 {[%clk 0:02:46]} 15. Bxc4 {[%clk 0:01:17]}  dxc4 {[%clk 0:02:47]} 16. Ra4 {[%clk 0:01:17]}  Nbd5 {[%clk 0:02:33]} 17. Rxc4 {[%clk 0:01:13]}  Be7 {[%clk 0:02:33]} 18. Ng2 {[%clk 0:01:10]}  O-O {[%clk 0:02:32]} 19. Ra1 {[%clk 0:01:09]}  Rfd8 {[%clk 0:02:31]} 20. Ke2 {[%clk 0:00:58]}  h6 {[%clk 0:02:31]} 21. g4 {[%clk 0:00:58]}  Nd7 {[%clk 0:02:22]} 22. Rca4 {[%clk 0:00:56]}  a6 {[%clk 0:02:21]} 23. Nxd5 {[%clk 0:00:53]}  exd5 {[%clk 0:02:18]} 24. Rb4 {[%clk 0:00:49]}  Ra7 {[%clk 0:02:18]} 25. Rb3 {[%clk 0:00:48]}  Re8 {[%clk 0:02:18]} 26. Kf2 {[%clk 0:00:47]}  Nf8 {[%clk 0:02:16]} 27. Ra4 {[%clk 0:00:47]}  Ne6 {[%clk 0:02:16]} 28. Bg3 {[%clk 0:00:47]}  Rc8 {[%clk 0:02:14]} 29. Rab4 {[%clk 0:00:41]}  Nd8 {[%clk 0:02:14]} 30. Rb6 {[%clk 0:00:42]}  a5 {[%clk 0:02:13]} 31. Ne1 {[%clk 0:00:41]}  a4 {[%clk 0:02:11]} 32. Ra3 {[%clk 0:00:41]}  Ne6 {[%clk 0:02:07]} 33. Nd3 {[%clk 0:00:39]}  Rca8 {[%clk 0:02:04]} 34. Kg2 {[%clk 0:00:33]}  f6 {[%clk 0:02:02]} 35. Kf2 {[%clk 0:00:33]}  Kf7 {[%clk 0:02:01]} 36. h4 {[%clk 0:00:31]}  Ke8 {[%clk 0:01:56]} 37. Nc1 {[%clk 0:00:30]}  Kd7 {[%clk 0:01:56]} 38. Ne2 {[%clk 0:00:29]}  Nxc5 {[%clk 0:01:54]} 39. Rc3 {[%clk 0:00:06]}  Ne6 {[%clk 0:01:48]} 40. Nf4 {[%clk 0:00:02]}  Bd8 {[%clk 0:01:47]} 41. Rb4 {[%clk 0:00:02]}  Nxf4 {[%clk 0:01:45]} 42. Bxf4 {[%clk 0:00:02]}  Ba5 {[%clk 0:01:45]} 43. Rxa4 {[%clk 0:00:02]}  Bxc3 {[%clk 0:01:45]} 44. Rxa7 {[%clk 0:00:03]}  Rxa7 {[%clk 0:01:45]} 45. bxc3 {[%clk 0:00:03]}  Ra2+ {[%clk 0:01:46]} 46. Kg3 {[%clk 0:00:03]}  Rc2 {[%clk 0:01:47]} 0-1


[Site "https://www.chess.com"]

[Event "Titled Tuesday Blitz April 19 Early 2022"]
[White "Dorokhin, Mykhailo"]
[Black "De Silva, L M S T"]
[WhiteFideId "14114178"]
[BlackFideId "9953698"]
[WhiteElo "2280"]
[BlackElo "1631"]
[Result "0-1"]
[Round "01"]
[TimeControl "180+1"]
[Date "2022.04.19"]
[WhiteClock "0:00:07"]
[BlackClock "0:00:17"]

1. d4 {[%clk 0:02:59]}  Nf6 {[%clk 0:02:59]} 2. Nf3 {[%clk 0:02:58]}  e6 {[%clk 0:03:00]} 3. Bf4 {[%clk 0:02:57]}  d5 {[%clk 0:02:59]} 4. e3 {[%clk 0:02:57]}  Bd6 {[%clk 0:03:00]} 5. c3 {[%clk 0:02:57]}  Bxf4 {[%clk 0:03:00]} 6. exf4 {[%clk 0:02:57]}  O-O {[%clk 0:03:00]} 7. Bd3 {[%clk 0:02:56]}  Qd6 {[%clk 0:03:01]} 8. g3 {[%clk 0:02:52]}  b6 {[%clk 0:03:01]} 9. O-O {[%clk 0:02:52]}  Ba6 {[%clk 0:03:00]} 10. Bxa6 {[%clk 0:02:50]}  Nxa6 {[%clk 0:03:01]} 11. Qd3 {[%clk 0:02:49]}  Nb8 {[%clk 0:03:01]} 12. Nbd2 {[%clk 0:02:47]}  c5 {[%clk 0:03:01]} 13. a3 {[%clk 0:02:45]}  Nc6 {[%clk 0:03:02]} 14. b4 {[%clk 0:02:45]}  Rfc8 {[%clk 0:02:58]} 15. Rfc1 {[%clk 0:02:43]}  a5 {[%clk 0:02:56]} 16. dxc5 {[%clk 0:02:39]}  bxc5 {[%clk 0:02:55]} 17. b5 {[%clk 0:02:40]}  Ne7 {[%clk 0:02:48]} 18. a4 {[%clk 0:02:39]}  Qc7 {[%clk 0:02:35]} 19. h4 {[%clk 0:02:36]}  Ng6 {[%clk 0:02:33]} 20. Re1 {[%clk 0:02:33]}  Rd8 {[%clk 0:02:29]} 21. Kg2 {[%clk 0:02:15]}  Qxf4 {[%clk 0:02:13]} 22. Qxg6 {[%clk 0:02:05]}  Qxf3+ {[%clk 0:02:13]} 23. Kxf3 {[%clk 0:02:01]}  hxg6 {[%clk 0:02:13]} 24. Nb3 {[%clk 0:02:00]}  Nd7 {[%clk 0:02:10]} 25. g4 {[%clk 0:01:47]}  Nb6 {[%clk 0:02:07]} 26. Nxc5 {[%clk 0:01:33]}  Rac8 {[%clk 0:02:03]} 27. Nb7 {[%clk 0:01:33]}  Rxc3+ {[%clk 0:02:03]} 28. Re3 {[%clk 0:01:33]}  Rxe3+ {[%clk 0:02:02]} 29. fxe3 {[%clk 0:01:32]}  Ra8 {[%clk 0:01:48]} 30. e4 {[%clk 0:01:25]}  d4 {[%clk 0:01:46]} 31. e5 {[%clk 0:01:25]}  Nd7 {[%clk 0:01:36]} 32. Ke4 {[%clk 0:01:21]}  Ra7 {[%clk 0:01:36]} 33. Nd8 {[%clk 0:01:07]}  Nc5+ {[%clk 0:01:36]} 34. Kf4 {[%clk 0:01:03]}  d3 {[%clk 0:01:29]} 35. Ke3 {[%clk 0:00:38]}  Rd7 {[%clk 0:01:29]} 36. Nc6 {[%clk 0:00:33]}  Nxa4 {[%clk 0:01:24]} 37. Nxa5 {[%clk 0:00:18]}  Nc3 {[%clk 0:01:20]} 38. Nc4 {[%clk 0:00:17]}  Nxb5 {[%clk 0:01:17]} 39. Rd1 {[%clk 0:00:16]}  Rc7 {[%clk 0:01:07]} 40. Kxd3 {[%clk 0:00:16]}  Rd7+ {[%clk 0:00:49]} 41. Kc2 {[%clk 0:00:16]}  Nd4+ {[%clk 0:00:49]} 42. Kb2 {[%clk 0:00:14]}  Rb7+ {[%clk 0:00:48]} 43. Kc3 {[%clk 0:00:14]}  Nf3 {[%clk 0:00:46]} 44. Ra1 {[%clk 0:00:10]}  Nxh4 {[%clk 0:00:44]} 45. Ra8+ {[%clk 0:00:10]}  Kh7 {[%clk 0:00:44]} 46. Kd4 {[%clk 0:00:11]}  Rd7+ {[%clk 0:00:41]} 47. Ke4 {[%clk 0:00:10]}  g5 {[%clk 0:00:39]} 48. Ne3 {[%clk 0:00:10]}  Kg6 {[%clk 0:00:37]} 49. Rh8 {[%clk 0:00:10]}  f5+ {[%clk 0:00:36]} 50. exf6 {[%clk 0:00:09]}  gxf6 {[%clk 0:00:37]} 51. Rg8+ {[%clk 0:00:09]}  Kf7 {[%clk 0:00:37]} 52. Rh8 {[%clk 0:00:09]}  Kg7 {[%clk 0:00:36]} 53. Re8 {[%clk 0:00:09]}  Rd6 {[%clk 0:00:30]} 54. Nc4 {[%clk 0:00:09]}  Ra6 {[%clk 0:00:30]} 55. Kd4 {[%clk 0:00:09]}  Kf7 {[%clk 0:00:28]} 56. Rh8 {[%clk 0:00:09]}  Ra4 {[%clk 0:00:24]} 57. Rh7+ {[%clk 0:00:09]}  Kg6 {[%clk 0:00:25]} 58. Rb7 {[%clk 0:00:09]}  f5 {[%clk 0:00:21]} 59. Rb6 {[%clk 0:00:09]}  Kf6 {[%clk 0:00:19]} 60. gxf5 {[%clk 0:00:09]}  Nxf5+ {[%clk 0:00:20]} 61. Kd3 {[%clk 0:00:09]}  g4 {[%clk 0:00:20]} 62. Nd2 {[%clk 0:00:10]}  g3 {[%clk 0:00:19]} 63. Ne4+ {[%clk 0:00:10]}  Ke5 {[%clk 0:00:17]} 64. Rxe6+ {[%clk 0:00:09]}  Kxe6 {[%clk 0:00:16]} 65. Nc5+ {[%clk 0:00:10]}  Ke5 {[%clk 0:00:16]} 66. Nxa4 {[%clk 0:00:11]}  g2 {[%clk 0:00:16]} 67. Nc3 {[%clk 0:00:07]}  g1=Q {[%clk 0:00:17]} 0-1


[Site "https://www.chess.com"]

[Event "Titled Tuesday Blitz April 19 Early 2022"]
[White "Fernandez Hernandez, Gerardo"]
[Black "Postnikov, Daniil"]
[WhiteFideId "2207400"]
[BlackFideId "4166329"]
[WhiteElo "2097"]
[BlackElo "2261"]
[Result "0-1"]
[Round "01"]
[TimeControl "180+1"]
[Date "2022.04.19"]
[WhiteClock "0:00:05"]
[BlackClock "0:01:10"]

1. e4 {[%clk 0:02:59]}  e6 {[%clk 0:02:58]} 2. d3 {[%clk 0:02:59]}  c5 {[%clk 0:02:58]} 3. g3 {[%clk 0:02:58]}  g6 {[%clk 0:02:58]} 4. Bg2 {[%clk 0:02:58]}  Bg7 {[%clk 0:02:58]} 5. f4 {[%clk 0:02:59]}  Ne7 {[%clk 0:02:58]} 6. Nf3 {[%clk 0:02:59]}  d6 {[%clk 0:02:56]} 7. O-O {[%clk 0:02:59]}  O-O {[%clk 0:02:55]} 8. c3 {[%clk 0:02:55]}  b5 {[%clk 0:02:50]} 9. Be3 {[%clk 0:02:44]}  b4 {[%clk 0:02:48]} 10. d4 {[%clk 0:02:43]}  Nd7 {[%clk 0:02:44]} 11. Nbd2 {[%clk 0:02:33]}  Bb7 {[%clk 0:02:43]} 12. Nc4 {[%clk 0:02:24]}  Bxe4 {[%clk 0:02:37]} 13. Nxd6 {[%clk 0:02:20]}  Nf5 {[%clk 0:02:26]} 14. Nxf5 {[%clk 0:02:01]}  gxf5 {[%clk 0:02:27]} 15. Ne5 {[%clk 0:01:35]}  Bxg2 {[%clk 0:02:23]} 16. Kxg2 {[%clk 0:01:34]}  bxc3 {[%clk 0:02:19]} 17. bxc3 {[%clk 0:01:29]}  Nxe5 {[%clk 0:02:20]} 18. dxe5 {[%clk 0:01:20]}  Qa5 {[%clk 0:02:17]} 19. c4 {[%clk 0:00:55]}  Rfd8 {[%clk 0:02:14]} 20. Qe2 {[%clk 0:00:54]}  Rab8 {[%clk 0:02:10]} 21. Rfd1 {[%clk 0:00:51]}  Bf8 {[%clk 0:02:04]} 22. Kh3 {[%clk 0:00:24]}  Be7 {[%clk 0:02:00]} 23. Rxd8+ {[%clk 0:00:19]}  Rxd8 {[%clk 0:01:58]} 24. Rd1 {[%clk 0:00:19]}  Rxd1 {[%clk 0:01:43]} 25. Qxd1 {[%clk 0:00:20]}  Qb4 {[%clk 0:01:20]} 26. Qd7 {[%clk 0:00:17]}  Bf8 {[%clk 0:01:20]} 27. Qd8 {[%clk 0:00:12]}  h6 {[%clk 0:01:13]} 28. Qd3 {[%clk 0:00:11]}  Qe1 {[%clk 0:01:13]} 29. Qb3 {[%clk 0:00:07]}  Qf1+ {[%clk 0:01:08]} 30. Kh4 {[%clk 0:00:08]}  Be7+ {[%clk 0:01:09]} 31. Kh5 {[%clk 0:00:05]}  Qh3# {[%clk 0:01:10]} 0-1


[Site "https://www.chess.com"]

[Event "Titled Tuesday Blitz April 19 Early 2022"]
[White "Fonseca Manrique, Enrique"]
[Black "Cagara, Paulina"]
[WhiteFideId "5114330"]
[BlackFideId "1124870"]
[WhiteElo "2569"]
[BlackElo "1780"]
[Result "1/2-1/2"]
[Round "01"]
[TimeControl "180+1"]
[Date "2022.04.19"]
[WhiteClock "0:00:17"]
[BlackClock "0:00:02"]

1. e4 {[%clk 0:02:59]}  c6 {[%clk 0:02:59]} 2. d4 {[%clk 0:02:59]}  d5 {[%clk 0:02:58]} 3. e5 {[%clk 0:02:59]}  c5 {[%clk 0:02:58]} 4. dxc5 {[%clk 0:02:58]}  e6 {[%clk 0:02:57]} 5. a3 {[%clk 0:02:58]}  Bxc5 {[%clk 0:02:56]} 6. b4 {[%clk 0:02:59]}  Bf8 {[%clk 0:02:56]} 7. Nf3 {[%clk 0:02:52]}  Ne7 {[%clk 0:02:56]} 8. Bd3 {[%clk 0:02:52]}  Ng6 {[%clk 0:02:55]} 9. O-O {[%clk 0:02:51]}  Nc6 {[%clk 0:02:54]} 10. Qe2 {[%clk 0:02:42]}  a6 {[%clk 0:02:50]} 11. Rd1 {[%clk 0:02:41]}  Be7 {[%clk 0:02:49]} 12. c4 {[%clk 0:02:37]}  dxc4 {[%clk 0:02:47]} 13. Bxc4 {[%clk 0:02:36]}  Qc7 {[%clk 0:02:47]} 14. Bb2 {[%clk 0:02:26]}  O-O {[%clk 0:02:44]} 15. Nbd2 {[%clk 0:02:22]}  b5 {[%clk 0:02:39]} 16. Bd3 {[%clk 0:02:17]}  Nf4 {[%clk 0:02:39]} 17. Qe4 {[%clk 0:02:06]}  Nxd3 {[%clk 0:02:38]} 18. Qxd3 {[%clk 0:02:07]}  Rd8 {[%clk 0:02:38]} 19. Qe3 {[%clk 0:02:06]}  Bb7 {[%clk 0:02:36]} 20. Rac1 {[%clk 0:02:06]}  Rac8 {[%clk 0:02:34]} 21. Nb3 {[%clk 0:02:04]}  Rxd1+ {[%clk 0:02:27]} 22. Rxd1 {[%clk 0:02:03]}  Rd8 {[%clk 0:02:26]} 23. Rc1 {[%clk 0:02:02]}  h6 {[%clk 0:02:20]} 24. Na5 {[%clk 0:01:56]}  Qd7 {[%clk 0:02:07]} 25. Nxb7 {[%clk 0:01:51]}  Qxb7 {[%clk 0:02:06]} 26. Qe4 {[%clk 0:01:43]}  Rd5 {[%clk 0:02:05]} 27. h3 {[%clk 0:01:38]}  Qd7 {[%clk 0:02:05]} 28. Qc2 {[%clk 0:01:37]}  Nd8 {[%clk 0:01:47]} 29. Bd4 {[%clk 0:01:32]}  Rxd4 {[%clk 0:01:44]} 30. Nxd4 {[%clk 0:01:31]}  Qxd4 {[%clk 0:01:44]} 31. Rd1 {[%clk 0:01:31]}  Qxe5 {[%clk 0:01:42]} 32. Qc8 {[%clk 0:01:27]}  Kh7 {[%clk 0:01:38]} 33. Qxa6 {[%clk 0:01:24]}  Qe2 {[%clk 0:01:35]} 34. Rf1 {[%clk 0:00:53]}  Bf6 {[%clk 0:01:31]} 35. a4 {[%clk 0:00:52]}  Bc3 {[%clk 0:01:16]} 36. axb5 {[%clk 0:00:43]}  Bxb4 {[%clk 0:01:15]} 37. Qb6 {[%clk 0:00:39]}  Qd2 {[%clk 0:01:14]} 38. Qc7 {[%clk 0:00:38]}  Qd6 {[%clk 0:01:10]} 39. Qc2+ {[%clk 0:00:38]}  f5 {[%clk 0:01:06]} 40. Rd1 {[%clk 0:00:38]}  Qb6 {[%clk 0:01:04]} 41. Qc4 {[%clk 0:00:34]}  Bc5 {[%clk 0:00:59]} 42. Rd2 {[%clk 0:00:33]}  Nb7 {[%clk 0:00:58]} 43. Re2 {[%clk 0:00:33]}  e5 {[%clk 0:00:55]} 44. g4 {[%clk 0:00:27]}  Qg6 {[%clk 0:00:50]} 45. Kh2 {[%clk 0:00:25]}  fxg4 {[%clk 0:00:49]} 46. hxg4 {[%clk 0:00:25]}  Bd4 {[%clk 0:00:46]} 47. Kg3 {[%clk 0:00:23]}  Nd6 {[%clk 0:00:45]} 48. Qb3 {[%clk 0:00:21]}  Ne4+ {[%clk 0:00:44]} 49. Kf3 {[%clk 0:00:21]}  Ng5+ {[%clk 0:00:43]} 50. Kg3 {[%clk 0:00:21]}  h5 {[%clk 0:00:38]} 51. Qc2 {[%clk 0:00:20]}  hxg4 {[%clk 0:00:29]} 52. Qxg6+ {[%clk 0:00:20]}  Kxg6 {[%clk 0:00:28]} 53. Kxg4 {[%clk 0:00:21]}  Ne6 {[%clk 0:00:28]} 54. Rc2 {[%clk 0:00:21]}  Kf7 {[%clk 0:00:21]} 55. Rc6 {[%clk 0:00:21]}  Nd8 {[%clk 0:00:19]} 56. Rc7+ {[%clk 0:00:20]}  Kf6 {[%clk 0:00:19]} 57. f3 {[%clk 0:00:21]}  g6 {[%clk 0:00:18]} 58. Rc6+ {[%clk 0:00:21]}  Ke7 {[%clk 0:00:17]} 59. Ra6 {[%clk 0:00:21]}  Kd7 {[%clk 0:00:16]} 60. Rxg6 {[%clk 0:00:21]}  Ne6 {[%clk 0:00:16]} 61. Kf5 {[%clk 0:00:21]}  Nc5 {[%clk 0:00:14]} 62. b6 {[%clk 0:00:21]}  Kc8 {[%clk 0:00:14]} 63. Rg7 {[%clk 0:00:18]}  Kb8 {[%clk 0:00:14]} 64. Kg4 {[%clk 0:00:17]}  Nd3 {[%clk 0:00:14]} 65. Rg6 {[%clk 0:00:16]}  Kb7 {[%clk 0:00:13]} 66. Kf5 {[%clk 0:00:16]}  Bxb6 {[%clk 0:00:11]} 67. Ke4 {[%clk 0:00:17]}  Nf2+ {[%clk 0:00:08]} 68. Kxe5 {[%clk 0:00:17]}  Nd3+ {[%clk 0:00:08]} 69. Ke4 {[%clk 0:00:16]}  Nc5+ {[%clk 0:00:08]} 70. Kd5 {[%clk 0:00:16]}  Nd3 {[%clk 0:00:08]} 71. Rg7+ {[%clk 0:00:16]}  Ka6 {[%clk 0:00:07]} 72. Rf7 {[%clk 0:00:17]}  Kb5 {[%clk 0:00:06]} 73. Ke4 {[%clk 0:00:15]}  Nc5+ {[%clk 0:00:05]} 74. Kd5 {[%clk 0:00:16]}  Nd3 {[%clk 0:00:05]} 75. Rb7 {[%clk 0:00:16]}  Ka6 {[%clk 0:00:05]} 76. Rh7 {[%clk 0:00:15]}  Kb5 {[%clk 0:00:04]} 77. Rh6 {[%clk 0:00:16]}  Nf4+ {[%clk 0:00:04]} 78. Ke4 {[%clk 0:00:16]}  Ne2 {[%clk 0:00:04]} 79. Rh2 {[%clk 0:00:15]}  Nc3+ {[%clk 0:00:03]} 80. Kd3 {[%clk 0:00:15]}  Nd5 {[%clk 0:00:03]} 81. Rb2+ {[%clk 0:00:15]}  Kc6 {[%clk 0:00:03]} 82. Ke4 {[%clk 0:00:15]}  Nc3+ {[%clk 0:00:03]} 83. Kf5 {[%clk 0:00:15]}  Nd5 {[%clk 0:00:03]} 84. Ke5 {[%clk 0:00:15]}  Ne3 {[%clk 0:00:03]} 85. f4 {[%clk 0:00:14]}  Nc4+ {[%clk 0:00:03]} 86. Ke6 {[%clk 0:00:14]}  Nxb2 {[%clk 0:00:03]} 87. f5 {[%clk 0:00:15]}  Bd4 {[%clk 0:00:03]} 88. f6 {[%clk 0:00:16]}  Bxf6 {[%clk 0:00:02]} 89. Kxf6 {[%clk 0:00:17]} 1/2-1/2


[Site "https://www.chess.com"]

[Event "Titled Tuesday Blitz April 19 Early 2022"]
[White "Friedel, Tom"]
[Black "Dang, Hoang Son"]
[WhiteFideId "2002108"]
[BlackFideId "12402435"]
[WhiteElo "2317"]
[BlackElo "2252"]
[Result "0-1"]
[Round "01"]
[TimeControl "180+1"]
[Date "2022.04.19"]
[WhiteClock "0:00:06"]
[BlackClock "0:00:17"]

1. e4 {[%clk 0:03:00]}  e5 {[%clk 0:02:59]} 2. Nf3 {[%clk 0:03:00]}  Nc6 {[%clk 0:02:58]} 3. Bc4 {[%clk 0:03:00]}  Nf6 {[%clk 0:02:56]} 4. d3 {[%clk 0:03:00]}  Bc5 {[%clk 0:02:56]} 5. c3 {[%clk 0:02:59]}  d6 {[%clk 0:02:55]} 6. b4 {[%clk 0:02:59]}  Bb6 {[%clk 0:02:55]} 7. a4 {[%clk 0:03:00]}  a6 {[%clk 0:02:54]} 8. O-O {[%clk 0:02:58]}  h6 {[%clk 0:02:48]} 9. a5 {[%clk 0:02:57]}  Ba7 {[%clk 0:02:48]} 10. Be3 {[%clk 0:02:58]}  Bxe3 {[%clk 0:02:46]} 11. fxe3 {[%clk 0:02:58]}  O-O {[%clk 0:02:47]} 12. Nbd2 {[%clk 0:02:55]}  d5 {[%clk 0:02:42]} 13. exd5 {[%clk 0:02:54]}  Nxd5 {[%clk 0:02:43]} 14. Bxd5 {[%clk 0:02:50]}  Qxd5 {[%clk 0:02:41]} 15. d4 {[%clk 0:02:51]}  exd4 {[%clk 0:02:22]} 16. exd4 {[%clk 0:02:50]}  Bg4 {[%clk 0:02:19]} 17. Qb3 {[%clk 0:02:35]}  Qd7 {[%clk 0:01:59]} 18. d5 {[%clk 0:02:10]}  Bxf3 {[%clk 0:01:54]} 19. Nxf3 {[%clk 0:02:09]}  Ne7 {[%clk 0:01:53]} 20. c4 {[%clk 0:02:05]}  c6 {[%clk 0:01:40]} 21. dxc6 {[%clk 0:01:52]}  Nxc6 {[%clk 0:01:39]} 22. Rad1 {[%clk 0:01:52]}  Qe7 {[%clk 0:01:36]} 23. c5 {[%clk 0:01:43]}  Rad8 {[%clk 0:01:23]} 24. Rde1 {[%clk 0:01:40]}  Qd7 {[%clk 0:01:13]} 25. Qc4 {[%clk 0:01:36]}  Qd5 {[%clk 0:01:00]} 26. Qe4 {[%clk 0:01:21]}  Qxe4 {[%clk 0:00:48]} 27. Rxe4 {[%clk 0:01:21]}  Rd5 {[%clk 0:00:46]} 28. Nh4 {[%clk 0:00:49]}  g6 {[%clk 0:00:41]} 29. Nf3 {[%clk 0:00:43]}  Kg7 {[%clk 0:00:40]} 30. g4 {[%clk 0:00:37]}  Rfd8 {[%clk 0:00:38]} 31. Kg2 {[%clk 0:00:36]}  R8d7 {[%clk 0:00:35]} 32. Kg3 {[%clk 0:00:35]}  Rd3 {[%clk 0:00:34]} 33. Rf2 {[%clk 0:00:25]}  Rb3 {[%clk 0:00:30]} 34. Kg2 {[%clk 0:00:12]}  Rxb4 {[%clk 0:00:26]} 35. Rxb4 {[%clk 0:00:12]}  Nxb4 {[%clk 0:00:26]} 36. Rb2 {[%clk 0:00:13]}  Nd3 {[%clk 0:00:26]} 37. Rb6 {[%clk 0:00:13]}  Nxc5 {[%clk 0:00:25]} 38. Ne5 {[%clk 0:00:12]}  Rd2+ {[%clk 0:00:22]} 39. Kf3 {[%clk 0:00:12]}  Rxh2 {[%clk 0:00:19]} 40. Nc4 {[%clk 0:00:12]}  Rh3+ {[%clk 0:00:19]} 41. Kf4 {[%clk 0:00:11]}  h5 {[%clk 0:00:18]} 42. Nd6 {[%clk 0:00:08]}  Rh4 {[%clk 0:00:17]} 43. Nxb7 {[%clk 0:00:05]}  Rxg4+ {[%clk 0:00:17]} 44. Kf3 {[%clk 0:00:06]}  Nxb7 {[%clk 0:00:16]} 45. Rxb7 {[%clk 0:00:06]}  Rg5 {[%clk 0:00:17]} 0-1


[Site "https://www.chess.com"]